Cogmind - Beta 13 X2 *** ADVENTURER MODE // 2023.12.28 @ 16:45:41

Player: AI-57H

Result: Destroyed by DAS Turret with DAS Cannon

 Performance 
-------------
Evolutions (0)             0
Regions Visited (3)        600
Robots Destroyed (29)      145
Value Destroyed (397)      397
Prototype IDs (0)          0
Alien Tech Used (0)        0
Bonus (-360)               -360
              TOTAL SCORE: 782

 Bonus
-------
Friendly Fire              -360

 Cogmind 
---------
Core Integrity             0/250
Matter                     216/300
Energy                     248/250
System Corruption          1%
Temperature                Cool (0)
Movement                   Rolling (140) Ox4
Location                   -10/Exiles

 Parts 
-------
>              --- POWER (1) --------
               Ion Engine
>              --- PROPULSION (2) ---
               Wheel
               Wheel
>              --- UTILITY (2) ------
               Huge Storage Unit
>              --- WEAPON (2) -------
         Heavy Mace
>              --- INVENTORY (25) ---
         Light Treads
         Light Treads
               Aluminum Leg
               Aluminum Leg
        Medium Matter Pod (0)
      Advanced Visual Processing Unit
  Experimental Sensor Array
      Improved Signal Interpreter
               ECM Suite
               Power Shielding
               Utility Shielding
               EM Pulse Gun
         Heavy Particle Cannon
         Light Assault Rifle
               Grenade Launcher
               Grenade Launcher
               Grenade Launcher
               Grenade Launcher
               Grenade Launcher

 Peak State 
------------
>              --- POWER ------------
               Ion Engine
>              --- PROPULSION -------
       Armored Treads
               Wheel
>              --- UTILITY ----------
               Huge Storage Unit
               Hardlight Generator
>              --- WEAPON -----------
         Heavy Particle Cannon
         Heavy Mace
>              --- INVENTORY --------
               Ion Engine
               Ion Engine
         Light Treads
         Light Treads
               Aluminum Leg
               Aluminum Leg
               Wheel
               Wheel
        Medium Matter Pod
      Advanced Visual Processing Unit
  Experimental Sensor Array
      Improved Signal Interpreter
               ECM Suite
               Power Shielding
               Utility Shielding
               EM Pulse Gun
         Light Assault Rifle
               Grenade Launcher
               Grenade Launcher
               Grenade Launcher
               Grenade Launcher
               Grenade Launcher
[Rating: 18]

 Favorites 
-----------
Power                      Ion Engine
  Engine                   Ion Engine
Propulsion                 Wheel
  Treads                   Armored Treads
  Wheel                    Wheel
Utility                    Huge Storage Unit
  Device                   Hardlight Generator
  Storage                  Huge Storage Unit
  Protection               Power Shielding
Weapon                     Light Cannon
  Energy Gun               Medium Laser
  Energy Cannon            Heavy Particle Cannon
  Ballistic Gun            Light Assault Rifle
  Ballistic Cannon         Light Cannon
  Launcher                 Grenade Launcher
  Special Weapon           Mining Laser
  Impact Weapon            Heavy Mace

 Build                          | -11 -10 -10 -10 
-------                    Run  | Yrd Mat Min Exi 
Slots Evolved              .    | .   .   .   .   
  Power                    .    | .   .   .   .   
  Propulsion               .    | .   .   .   .   
  Utility                  .    | .   .   .   .   
  Weapon                   .    | .   .   .   .   
Parts Attached             39   | 6   11  8   14  
  Power                    5    | 1   1   .   3   
    Engine                 5    | 1   1   .   3   
    Core                   .    | .   .   .   .   
    Reactor                .    | .   .   .   .   
  Propulsion               12   | 2   2   4   4   
    Treads                 4    | 2   .   1   1   
    Leg                    .    | .   .   .   .   
    Wheel                  8    | .   2   3   3   
    Hover                  .    | .   .   .   .   
    Flight                 .    | .   .   .   .   
  Utility                  7    | 1   3   1   2   
    Device                 1    | .   .   1   .   
    Storage                4    | 1   2   .   1   
    Processor              .    | .   .   .   .   
    Hackware               .    | .   .   .   .   
    Protection             2    | .   1   .   1   
    Artifact               .    | .   .   .   .   
  Weapon                   15   | 2   5   3   5   
    Energy Gun             3    | 2   1   .   .   
    Energy Cannon          1    | .   .   .   1   
    Ballistic Gun          3    | .   2   .   1   
    Ballistic Cannon       4    | .   2   1   1   
    Launcher               2    | .   .   1   1   
    Special Weapon         1    | .   .   1   .   
    Impact Weapon          1    | .   .   .   1   
    Slashing Weapon        .    | .   .   .   .   
    Piercing Weapon        .    | .   .   .   .   
    Special Melee Weapon   .    | .   .   .   .   
  Unidentified Prototypes  .    | .   .   .   .   
Parts Lost                 8    | .   .   2   6   
  Power                    2    | .   .   .   2   
  Propulsion               3    | .   .   1   2   
  Utility                  1    | .   .   .   1   
  Weapon                   2    | .   .   1   1   
  Highest Loss Streak      5    | .   .   1   5   
  To Critical Strikes      3    | .   .   .   3   
Average Slot Usage (%)     87   | .   85  85  91  
  Engine                   13   | .   14  14  12  
  Treads                   5    | .   2   1   10  
  Wheel                    22   | .   25  25  16  
  Device                   3    | .   .   1   7   
  Storage                  13   | .   14  14  13  
  Protection               1    | .   .   .   3   
  Energy Gun               1    | .   7   .   .   
  Ballistic Gun            2    | .   6   .   2   
  Ballistic Cannon         15   | .   14  22  7   
  Launcher                 3    | .   .   1   6   
  Special Weapon           1    | .   .   2   .   
  Impact Weapon            3    | .   .   .   7   
Naked Turns                .    | .   .   .   .   
Heaviest Build             96   | 13  91  96  96  
  Greatest Support         40   | 40  40  26  20  
  Greatest Overweight (x)  9    | 1   3   9   9   
  Average Overweight (x)   4    | .   2   4   6   
Largest Inventory Capacity 25   | 8   25  25  25  
  Average Capacity         23   | 7   21  25  24  
  Most Carried             25   | 6   18  25  23  
  Average Carried          17   | 3   12  19  20  
  Final Capacity           25   | 8   25  25  25  
  Final Carried            23   | 6   18  23  19  

 Class Distribution 
--------------------
 100% | Mutant

 Dominant Class 
----------------
 Mutant | -10/Materials
 Mutant | -10/Mines
 Mutant | -10/Exiles

 Resources                      | -11 -10 -10 -10 
-----------                Run  | Yrd Mat Min Exi 
Matter Collected           983  | 235 249 426 73  
  Remotely                 .    | .   .   .   .   
Salvage Created            600  | .   411 170 19  
  Parts                    40   | .   29  11  .   
Haulers Intercepted        2    | .   2   .   .   
Recyclers Shooed           .    | .   .   .   .   
Parts Field Recycled       .    | .   .   .   .   
  Retrieved Matter         .    | .   .   .   .   
Parts Self-Destructed      .    | .   .   .   .   
  Prevented                .    | .   .   .   .   

 Kills                          | -11 -10 -10 -10 
-------                    Run  | Yrd Mat Min Exi 
Combat Hostiles Destroyed  27   | .   10  10  7   
  Guns                     8    | .   8   .   .   
  Cannons                  12   | .   2   10  .   
  AOE                      6    | .   .   .   6   
Classes Destroyed          8    | .   6   2   .   
  Worker                   4    | .   2   2   .   
  Builder                  2    | .   2   .   .   
  Hauler                   2    | .   2   .   .   
  Recycler                 1    | .   .   1   .   
  Watcher                  2    | .   2   .   .   
  Swarmer                  11   | .   6   5   .   
  Grunt                    6    | .   4   2   .   
  Assembled                9    | .   .   3   6   
Best Kill Streak           6    | .   5   3   6   
  Combat Bots Only         6    | .   3   3   6   
Max Kills in Single Turn   3    | .   2   1   3   
  Gunslinging              1    | .   1   .   .   
  Exploded                 3    | .   .   .   3   
  Melee                    .    | .   .   .   .   
Uniques/NPCs Destroyed     1    | .   .   .   1   
  8R-AWN (-10/Exiles)

 Combat                         | -11  -10  -10  -10  
--------                   Run  | Yrd  Mat  Min  Exi  
Hostile Shots Fired        152  | .    35   46   71   
  Missed                   32   | .    10   14   8    
Damage Taken               1371 | .    208  287  876  
  Core                     262  | .    26   15   221  
  Absorbed by Shields      148  | .    .    .    148  
  Redirected to Shielding  13   | .    .    .    13   
  Ignored by Resistances   434  | .    65   87   282  
Core Remaining (%)         100  | 100  .    .    .    
Volleys Fired              80   | .    42   33   5    
  Largest                  2    | .    2    2    1    
  Hottest                  100  | .    90   100  30   
Shots Fired                153  | .    84   64   5    
  Gun                      64   | .    62   .    2    
  Cannon                   84   | .    22   62   .    
  Launcher                 3    | .    .    .    3    
  Special                  2    | .    .    2    .    
  Kinetic                  124  | .    60   62   2    
  Thermal                  26   | .    24   2    .    
  Explosive                3    | .    .    .    3    
  Electromagnetic          .    | .    .    .    .    
  Robot Hit Streak         10   | .    10   9    8    
  Robot Miss Streak        3    | .    2    3    .    
  Penetration Max          .    | .    .    .    .    
  Secondary Targets        1    | .    1    .    .    
    Max Gunslinging Chain  1    | .    1    .    .    
Shots Hit Robots           136  | .    62   42   32   
  Core Hits                51   | .    25   16   10   
  Critical Kills           1    | .    1    .    .    
  Critical Parts Destroyed 4    | .    1    .    3    
  Critical Strikes         12   | .    5    1    6    
    Destroy                2    | .    2    .    .    
    Blast                  4    | .    3    1    .    
    Smash                  6    | .    .    .    6    
Melee Attacks              33   | .    .    .    33   
  Impact                   33   | .    .    .    33   
  Slashing                 .    | .    .    .    .    
  Piercing                 .    | .    .    .    .    
  Sneak Attacks            1    | .    .    .    1    
    Combat Hostiles        .    | .    .    .    .    
  Follow-up Attacks        .    | .    .    .    .    
Damage Inflicted           3196 | .    723  722  1751 
  Guns                     445  | .    438  .    7    
  Cannons                  1007 | .    285  722  .    
  Explosions               362  | .    .    .    362  
  Melee                    1382 | .    .    .    1382 
  Ramming                  .    | .    .    .    .    
  Kinetic                  1231 | .    502  722  7    
  Thermal                  221  | .    221  .    .    
  Explosive                362  | .    .    .    362  
  Electromagnetic          .    | .    .    .    .    
  Impact                   1382 | .    .    .    1382 
  Slashing                 .    | .    .    .    .    
  Piercing                 .    | .    .    .    .    
Highest Corruption         1    | .    1    1    1    
  Average Corruption       1    | .    1    1    1    
  Corruption Purged        .    | .    .    .    .    
  Corruption Blocked       .    | .    .    .    .    
  Effects                  17   | .    3    7    7    
    Message Errors         2    | .    1    1    .    
    Matter Fused           5    | .    1    2    2    
    Heat Flow Errors       3    | .    .    1    2    
    Energy Discharges      2    | .    1    .    1    
    Data Loss (minor)      4    | .    .    2    2    
    Data Loss (major)      1    | .    .    1    .    
Overload Shots             .    | .    .    .    .    
Overflow Damage            216  | .    .    25   191  
  Projectiles              25   | .    .    25   .    
  Explosions               68   | .    .    .    68   
  Melee                    123  | .    .    .    123  
Knockbacks                 21   | .    5    10   6    
  Impact                   6    | .    .    .    6    
  Kinetic                  13   | .    4    9    .    
  Secondary                2    | .    1    1    .    
Self-Inflicted Damage      22   | .    .    .    22   
  Shots                    3    | .    .    .    3    
  Rammed                   .    | .    .    .    .    
Targets Rammed             .    | .    .    .    .    
  Kicked                   .    | .    .    .    .    
  Crushed                  .    | .    .    .    .    
Highest Temperature        261  | .    261  200  241  
  Average Temperature      57   | .    74   38   102  
  Received Heat Transfer   177  | .    105  72   .    
Siege Activations          .    | .    .    .    .    
Robots Corrupted           .    | .    .    .    .    
  Combat Hostiles          .    | .    .    .    .    
  Parts Fried              .    | .    .    .    .    
  Impact Corruptions       5    | .    .    .    5    
Robots Melted              .    | .    .    .    .    
  Combat Hostiles          .    | .    .    .    .    
  Parts Melted             1    | .    1    .    .    
  Heat Transferred         571  | .    571  .    .    
Parts Sabotaged            .    | .    .    .    .    
Parts Stolen               .    | .    .    .    .    
Parts Stripped             .    | .    .    .    .    
Power Chain Reactions      .    | .    .    .    .    
Missiles Intercepted       .    | .    .    .    .    

 Alert                          | -11 -10 -10 -10 
-------                    Run  | Yrd Mat Min Exi 
Peak Influence             398  | .   398 219 .   
  Initial                  64   | .   .   64  .   
  Average                  129  | .   218 95  .   
Maximum Alert Level        1    | .   1   1   .   
  Low Security (%)         73   | 100 51  82  .   
  Level 1                  26   | .   48  17  .   
  Level 2                  .    | .   .   .   .   
  Level 3                  .    | .   .   .   .   
  Level 4                  .    | .   .   .   .   
  Level 5                  .    | .   .   .   .   
  High Security            .    | .   .   .   .   
  Max Security             .    | .   .   .   .   
Squads Dispatched          3    | .   2   1   .   
  Investigation            3    | .   2   1   .   
  Extermination            .    | .   .   .   .   
  Reinforcement            .    | .   .   .   .   
  Assault                  .    | .   .   .   .   
  Garrison                 .    | .   .   .   .   
  Intercept                .    | .   .   .   .   
Searches Triggered         .    | .   .   .   .   
Construction Impeded       .    | .   .   .   .   
Haulers Reinforced         .    | .   .   .   .   
Active Scanning Responses  .    | .   .   .   .   
Cargo Convoy Interrupts    .    | .   .   .   .   

 Stealth                        | -11 -10 -10 -10 
---------                  Run  | Yrd Mat Min Exi 
Distress Signals           3    | .   3   .   .   
Communications Jammed      .    | .   .   .   .   
  Distress Signals         .    | .   .   .   .   
Times Spotted              37   | .   17  12  8   
  Peak Tracking Total      9    | .   7   3   9   
  Tactical Retreats        6    | .   2   2   2   

 Traps                          | -11 -10 -10 -10 
-------                    Run  | Yrd Mat Min Exi 
Traps Triggered            1    | .   1   .   .   
  Indirectly               .    | .   .   .   .   
Trap Hack Attempts         .    | .   .   .   .   
  Triggered                .    | .   .   .   .   
  Disarmed                 .    | .   .   .   .   
  Reprogrammed             .    | .   .   .   .   
  Reused                   .    | .   .   .   .   
Traps Extracted            .    | .   .   .   .   
  Installed                .    | .   .   .   .   
  Triggered                .    | .   .   .   .   

 Machines                       | -11 -10 -10 -10 
----------                 Run  | Yrd Mat Min Exi 
Machines Disabled          1    | .   .   .   1   
  Max in Single Turn       1    | .   .   .   1   
Machines Repaired          .    | .   .   .   .   
Machines Dismantled        .    | .   .   .   .   
Machines Sabotaged         .    | .   .   .   .   
Overloaded Fab Kills       .    | .   .   .   .   

 Hacking                        | -11 -10 -10 -10 
---------                  Run  | Yrd Mat Min Exi 
Machines Accessed          5    | .   2   2   1   
  Terminals                3    | .   2   1   .   
  Fabricators              .    | .   .   .   .   
  Repair Stations          .    | .   .   .   .   
  Recycling Units          .    | .   .   .   .   
  Scanalyzers              .    | .   .   .   .   
  Garrison Access          .    | .   .   .   .   
Total Hacks                34   | .   7   4   23  
  Successful               27   | .   3   1   23  
  Failed                   7    | .   4   3   .   
    Catastrophic           1    | .   .   1   .   
  Database Lockouts        .    | .   .   .   .   
  Manual                   9    | .   5   3   1   
  Terminals                10   | .   7   3   .   
  Fabricators              .    | .   .   .   .   
  Repair Stations          .    | .   .   .   .   
  Recycling Units          .    | .   .   .   .   
  Scanalyzers              .    | .   .   .   .   
  Garrison Access          .    | .   .   .   .   
Terminal Hacks             25   | .   1   1   23  
  Record                   23   | .   .   .   23  
  Open Door                1    | .   .   1   .   
  Branch Access Points     1    | .   1   .   .   
Fabricator Hacks           .    | .   .   .   .   
Repair Station Hacks       .    | .   .   .   .   
Recycling Unit Hacks       .    | .   .   .   .   
Scanalyzer                 .    | .   .   .   .   
Garrison Access Hacks      .    | .   .   .   .   
Unauthorized Hacks         2    | .   2   .   .   
  Terminals                2    | .   2   .   .   
    Botnet                 2    | .   2   .   .   
  Fabricators              .    | .   .   .   .   
  Repair Stations          .    | .   .   .   .   
  Recycling Units          .    | .   .   .   .   
  Scanalyzers              .    | .   .   .   .   
  Garrison Access          .    | .   .   .   .   
Data Cores Recovered       .    | .   .   .   .   
  Used                     .    | .   .   .   .   
Hacking Detections         3    | .   2   1   .   
  Full Trace Events        2    | .   1   1   .   
  Feedback Events          1    | .   1   .   .   
    Corruption             1    | .   1   .   .   
  Feedback Blocked         .    | .   .   .   .   
Robot Schematics Acquired  .    | .   .   .   .   
  Robots Built             .    | .   .   .   .   
    Authchips              .    | .   .   .   .   
    Time                   .    | .   .   .   .   
  Total Robot Build Rating .    | .   .   .   .   
Part Schematics Acquired   .    | .   .   .   .   
  Parts Built              .    | .   .   .   .   
    Authchips              .    | .   .   .   .   
    Time                   .    | .   .   .   .   
  Total Part Build Rating  .    | .   .   .   .   
Parts Repaired             .    | .   .   .   .   
  Time                     .    | .   .   .   .   
Parts Recycled             .    | .   .   .   .   
  Recycled Matter          .    | .   .   .   .   
  Retrieved Matter         .    | .   .   .   .   
  Retrieved Components     .    | .   .   .   .   
Parts Scanalyzed           .    | .   .   .   .   
  Part Schematics Acquired .    | .   .   .   .   
  Parts Damaged            .    | .   .   .   .   

 Bothacking                     | -11 -10 -10 -10 
------------               Run  | Yrd Mat Min Exi 
Used RIF Installer         .    | .   .   .   .   
Robots Hacked              .    | .   .   .   .   
  Non-combat               .    | .   .   .   .   
  Combat                   .    | .   .   .   .   
Robot Hacks Applied        .    | .   .   .   .   
Relay Couplers Released    .    | .   .   .   .   
Fabnet Peak Effective %    .    | .   .   .   .   
Robots Rewired             .    | .   .   .   .   
Allies Hacked              .    | .   .   .   .   
Hacks Repelled             .    | .   .   .   .   

 Allies                         | -11 -10 -10 -10 
--------                   Run  | Yrd Mat Min Exi 
Total Allies               1    | .   .   1   .   
  Largest Group            1    | .   .   1   .   
  Highest-Rated Group      31   | .   .   31  .   
  Highest-Rated Ally       31   | .   .   31  .   
Total Orders               .    | .   .   .   .   
Ally Attacks               .    | .   .   .   .   
  Total Damage             .    | .   .   .   .   
  Kills                    .    | .   .   .   .   
Allies Corrupted           .    | .   .   .   .   
Allies Melted              .    | .   .   .   .   

 Intel                          | -11 -10 -10 -10 
-------                    Run  | Yrd Mat Min Exi 
Robot Analysis Total       .    | .   .   .   .   
Derelict Logs Recovered    2    | .   .   2   .   
Drone Launches             .    | .   .   .   .   
  Drone Recoveries         .    | .   .   .   .   

 Exploration                    | -11 -10 -10 -10 
-------------              Run  | Yrd Mat Min Exi 
Turns Passed               2415 | 95  495 948 877 
Spaces Moved               1246 | 54  263 549 380 
  Core                     23   | 6   .   .   17  
  Treads                   78   | 48  27  .   3   
  Legs                     .    | .   .   .   .   
  Wheels                   1145 | .   236 549 360 
  Hover                    .    | .   .   .   .   
  Flight                   .    | .   .   .   .   
  Fastest Speed            50   | 50  105 135 50  
  Average Speed            155  | 149 130 146 185 
  Slowest Speed            490  | 160 160 215 490 
  Overloaded Moves         .    | .   .   .   .   
  Propulsion Burnouts      .    | .   .   .   .   
  Robots Hopped            .    | .   .   .   .   
  Cave-ins Triggered       .    | .   .   .   .   
Exploration Rate (%)       49   | 5   41  94  58  
  Regions Visited          3
    Branch Regions         2
  Pre-discovered Areas     1    | .   .   .   1   
  Known Exits Taken        1    | .   1   .   .   
  Unknown Exits Taken      2    | 1   .   1   .   
Scrap Searched             1    | .   .   1   .   
Spaces Dug                 3    | .   .   2   1   
Terrain Destroyed          18   | .   .   2   16  
  Melee                    1    | .   .   .   1   
  Projectile               2    | .   .   2   .   
  AOE                      15   | .   .   .   15  
Terrain Rammed             .    | .   .   .   .   
  Walls Destroyed          .    | .   .   .   .   
  Machines Disabled        .    | .   .   .   .   

 Actions                        | -11 -10 -10 -10 
---------                  Run  | Yrd Mat Min Exi 
Total                      1519 | 65  336 628 490 
  Wait                     64   | .   5   23  36  
  Move                     1243 | 53  262 548 380 
  Hop                      .    | .   .   .   .   
  Pick Up                  42   | 6   9   11  16  
  Fast Attach              17   | 6   7   1   3   
  Attach                   10   | .   .   3   7   
  Detach                   1    | .   1   .   .   
  Swap                     12   | .   4   4   4   
  Drop                     17   | .   6   5   6   
  Fire                     80   | .   42  33  5   
  Melee                    33   | .   .   .   33  
  Ram                      .    | .   .   .   .   
  Kick                     .    | .   .   .   .   
  Crush                    .    | .   .   .   .   
  Escape Stasis            .    | .   .   .   .   
  Rewire                   .    | .   .   .   .   
  Trap                     .    | .   .   .   .   
  Miscellaneous            .    | .   .   .   .   

 Route 
-------
-11/Scrapyard
-10/Materials (discovered 2 exits: *Mat / *Min)
-10/Mines (discovered 3 exits: *Mat x2 / *Exi)
-10/Exiles (discovered 1 exit: [*Min])

 History 
---------
 Turn | Location      | Event
    6 | -11/Scrapyard | Discovered new exit (range 16)
   96 | -11/Scrapyard | Entered Materials
  314 | -10/Materials | Build established: Mutant
  363 | -10/Materials | Discovered new exit (range 15)
  364 | -10/Materials | Identified exit to Mines
  591 | -10/Materials | Entered Mines
  599 | -10/Mines     | Met a Derelict bent on vengeance
  747 | -10/Mines     | Discovered new exit (range 5)
  915 | -10/Mines     | Assembled infested the area
  930 | -10/Mines     | Learned Materials stockpile data
 1167 | -10/Mines     | Received a Mining Laser from a helpful Derelict
 1252 | -10/Mines     | Found a damaged Exp. Sensor Array with a note attached
 1255 | -10/Mines     | Found Prototype Device
 1281 | -10/Mines     | Identified exit to Materials
 1383 | -10/Mines     | Met a Derelict who couldn't figure out how to use a Trap Extractor
 1528 | -10/Mines     | Deemed a non-threat by the Exiles lab entrance
 1530 | -10/Mines     | Discovered new exit (range 5)
 1539 | -10/Mines     | Entered Exiles
 1572 | -10/Exiles    | Discovered new exit (range 14)
 1598 | -10/Exiles    | Met 8R-AWN
 1634 | -10/Exiles    | Met EX-HEX
 1735 | -10/Exiles    | Met EX-DEC
 1772 | -10/Exiles    | Learned location of Zion (-7)
 1813 | -10/Exiles    | Met EX-BIN
 1962 | -10/Exiles    | Attacked by the Exiles
 2034 | -10/Exiles    | Core integrity fell below 50%
 2064 | -10/Exiles    | Lost 5 parts (1p2n1u1w)
 2073 | -10/Exiles    | Destroyed 8R-AWN
 2415 | -10/Exiles    | Core integrity fell below 20%
 2416 | -10/Exiles    | Destroyed by DAS Turret with DAS Cannon

 Last Messages 
---------------
02256_ Acquired Ion Engine.
02259_ Acquired Grenade Launcher.
02263_ Acquired Lgt. Treads.
02265_ Acquired Adv. Visual Processing Unit.
02267_ Acquired Grenade Launcher. <x2>
02271_ System corrupted: Matter fused (-9).
02272_ Acquired Ion Engine.
02275_ Acquired Lgt. Treads.
02277_ Acquired Grenade Launcher.
02278_ Extracted 72 matter.
02279_ Acquired Med. Matter Pod.
02282_ Acquired ECM Suite.
02284_ Acquired Imp. Signal Interpreter.
02287_ Acquired Power Shielding.
02289_ Acquired Utility Shielding.
02291_ Acquired Grenade Launcher.
02294_ Acquired Lgt. Assault Rifle.
02374_ Ion Engine destroyed.
02377_ Acquired 1 matter.
02389_ System corrupted: Energy discharge (-71).

 Map 
-----
+----------------------------------------------------+
| ????????????""    ?????????#"       "X" """"?????? |
| ????????????""   "#????????#"       """    #?????? |
| ????????????    ""?????????#"     """""""""#?????? |
| ?????????????"  "?????????##"    ###########?????? |
|  ????????????#  #????????##""    #???????????????? |
|   #####????###  ###?######""     #???????????????? |
|     """#####X#  #"###"""""""     ##??????????????? |
|                  """""" " ""      ##???########### |
|                  "" """   "        #####"""""""""# |
|                   "  "                  " """ """" |
| #                                         ""   "   |
| ###                                        "    "" |
| ??##                                            "  |
| ???##                                           "  |
| ????##"                                            |
| ?????#"""                """"""                    |
| ????##"                 ######"""                  |
| ????#""              ""##????#####"""              |
| ????#"""           """##?????????##"""             |
| ????"""           """##???????????#""""            |
| ????"""            ""#???????????##""              |
| ???#""              ########??####""""             |
| ???#"""               ##aaa####"""                 |
| ???#""                      """"                   |
| ????#""                                            |
| ????#""""                @ %%                      |
| ?????#                                     "       |
| ?????#"                   "      ""        """     |
| ?????#""""               ""##  ##""" " "  ""#"     |
| ?????#""               ""####  ######""" """##"""" |
| ???????             """"##??#  #????###""""####### |
| ??????"""            """#???#  #??????######?????? |
| ???????              ""##???!   ?????????????????? |
| ???????""          """##???#"    ????????????????? |
| ????????"""          #?????#"    ????????????????? |
| ??????????"""       #???????!!""!"???????????????? |
| ????????????        ????????#######??????????????? |
| ?????????????##    ??????????????????????????????? |
| ????????????????   ??????????????????????????????? |
| ?????????????????????????????????????????????????? |
| ?????????????????????????????????????????????????? |
| ?????????????????????????????????????????????????? |
| ?????????????????????????????????????????????????? |
| ?????????????????????????????????????????????????? |
| ?????????????????????????????????????????????????? |
| ?????????????????????????????????????????????????? |
| ?????????????????????????????????????????????????? |
| ?????????????????????????????????????????????????? |
| ?????????????????????????????????????????????????? |
| ?????????????????????????????????????????????????? |
+----------------------------------------------------+

 Best States
-------------
Heat Dissipation           25
Energy Generation          10
Energy Capacity            250
Matter Stores              300
Matter Capacity            300
Sight Range                16
Terrain Scan Density       10
Resistance: KI             20
Resistance: TH             20
Resistance: EX             20
Resistance: EM             20
Resistance: I              20
Resistance: S              20
Resistance: P              20
Power Shielding            33
Utility Shielding          33
Evasion (%)                50
Recoil Reduction           2
Offensive Hacking          10

 Item Schematics 
-----------------
None

 Robot Schematics 
------------------
None

 Fabricated
------------
Nothing

 Alien Tech Used 
-----------------
None

 Achievements 
--------------
None

 Challenges 
------------
None

 Game 
------
Seed              ContainmentSupersonicTorch
  Manual?         0
Play Time         00:14:19
  Cumulative      310.9 hours
  Start           2023.12.28 @ 16:32:01
  End             2023.12.28 @ 16:45:41
Sessions          1
Manual Loads      0
Difficulty        Adventurer
Special Mode      None
Game No.          78
  Rogue           52
  Adventurer      20
  Explorer        6
Win Type          -
  Total           24
  Types           9/0/4/3/0/6/2/0/0
Lore%             67
Gallery%          78
Achievement%      74
Wizard Run        0

 Options 
---------
ASCII             0
Keyboard          0
Movement          Mouse
Keybinds          0
Fullscreen        1
Font              24/Smallcaps
Map View          76x50
Zoom Use          0%
Tactical HUD      1
Map Filters       NONE
Filters           NONE
Steam             1


RUN: 094dad3a-4fd0-452f-b6fc-2ae6e20a64de